fUSD/lending_fUSD_20241111
["ID","MTS","AMOUNT","RATE_DAILY","PERIOD"]
[341953266,1731321047160,-1549.92,0.00014791,2]
[341953268,1731321047169,-1549.92,0.00014791,2]
[341953270,1731321047178,-1549.92,0.00014791,2]
[341953272,1731321047187,-1549.92,0.00014791,2]
[341953274,1731321047196,-500.0,0.00014791,2]
[341953276,1731321047205,-500.0,0.00014791,2]
[341953278,1731321047214,-500.0,0.00014791,2]
[341953280,1731321047223,-500.0,0.00014791,2]
[341953282,1731321047233,-2000.0,0.00014791,2]
[341953284,1731321047242,-2000.0,0.00014791,2]
[341953286,1731321047251,-2000.0,0.00014791,2]
[341953288,1731321047260,-877.94283262,0.00014791,2]
[341953290,1731321047269,-500.0,0.00014791,2]
[341953292,1731321047278,-500.0,0.00014791,2]
[341953294,1731321047287,-500.0,0.00014791,2]
[341953296,1731321047297,-500.0,0.00014791,2]
[341953298,1731321047308,-1603.65,0.00014791,2]
[341953300,1731321047317,-1603.65,0.00014791,2]
[341953302,1731321047326,-1603.65,0.00014791,2]
[341953304,1731321047336,-1603.65,0.00014791,2]
[341953306,1731321047345,-500.0,0.00014791,2]
[341953308,1731321047354,-500.0,0.00014791,2]
[341953310,1731321047363,-500.0,0.00014791,2]
[341953312,1731321047371,-500.0,0.00014791,2]
[341953314,1731321047381,-500.0,0.00014791,2]
[341953315,1731321047390,-500.0,0.00014791,2]
[341953317,1731321047399,-500.0,0.00014791,2]
[341953319,1731321047408,-500.0,0.00014791,2]
[341953321,1731321047417,-640.12,0.00014791,2]
[341953323,1731321047426,-640.12,0.00014791,2]
[341953325,1731321047435,-640.12,0.00014791,2]
[341953327,1731321047444,-640.12,0.00014791,2]
[341953329,1731321047453,-500.0,0.00014791,2]
[341953331,1731321047462,-500.0,0.00014791,2]
[341953333,1731321047471,-500.0,0.00014791,2]
[341953335,1731321047480,-500.0,0.00014791,2]
[341953337,1731321047490,-500.0,0.00014791,2]
[341953339,1731321047499,-500.0,0.00014791,2]
[341953341,1731321047510,-500.0,0.00014791,2]
[341953343,1731321047519,-500.0,0.00014791,2]
[341953345,1731321047528,-500.0,0.00014791,2]
[341953347,1731321047537,-275.41246197,0.00014791,2]
[341953349,1731321047546,-500.0,0.00014791,2]
[341953351,1731321047559,-477.54604623,0.00014791,2]
[341953353,1731321047568,-500.0,0.00014791,2]
[341953355,1731321047577,-618.22,0.00014791,2]
[341953357,1731321047587,-500.0,0.00014791,2]
[341953359,1731321047596,-170.86,0.00014791,2]
[341953361,1731321047610,-500.0,0.00014791,2]
[341953363,1731321047619,-500.0,0.00014791,2]
[341953365,1731321047628,-500.0,0.00014791,2]
[341953367,1731321047638,-500.0,0.00014791,2]
[341953369,1731321047647,-500.0,0.00014791,2]
[341953371,1731321047657,-197.36781249,0.00014791,2]
[341953373,1731321047667,-500.0,0.00014791,2]
[341953375,1731321047676,-500.0,0.00014791,2]
[341953377,1731321047686,-500.0,0.00014791,2]
[341953379,1731321047695,-500.0,0.00014791,2]
[341953381,1731321047705,-500.0,0.00014791,2]
[341953383,1731321047714,-415.55,0.00014791,2]
[341953385,1731321047723,-699.45,0.00014791,2]
[341953387,1731321047732,-500.0,0.00014791,2]
[341953389,1731321047741,-500.0,0.00014791,2]
[341953391,1731321047751,-500.0,0.00014791,2]
[341953393,1731321047760,-160.189432,0.00014791,2]
[341953395,1731321047769,-1087.46,0.00014791,2]
[341953397,1731321047779,-2369.92,0.00014791,2]
[341953399,1731321047788,-500.0,0.00014791,2]
[341953401,1731321047798,-1386.76,0.00014791,2]
[341953403,1731321047809,-500.0,0.00014791,2]
[341953405,1731321047818,-500.0,0.00014791,2]
[341953407,1731321047827,-527.78,0.00014791,2]
[341953409,1731321047837,-500.0,0.00014791,2]
[341953411,1731321047846,-500.0,0.00014791,2]
[341953413,1731321047855,-500.0,0.00014791,2]
[341953415,1731321047864,-2974.98,0.00014791,2]
[341953417,1731321047874,-565.24,0.00014791,2]
[341953419,1731321047883,-755.97,0.00014791,2]
[341953421,1731321047893,-617.75,0.00014791,2]
[341953423,1731321047902,-759.27,0.00014791,2]
[341953425,1731321047912,-1112.22,0.00014791,2]
[341953427,1731321047922,-500.0,0.00014791,2]
[341953429,1731321047932,-500.0,0.00014791,2]
[341953431,1731321047941,-535.69,0.00014791,2]
[341953433,1731321047950,-500.0,0.00014791,2]
[341953435,1731321047959,-500.0,0.00014791,2]
[341953437,1731321047969,-528.92,0.00014791,2]
[341953439,1731321047979,-500.0,0.00014791,2]
[341953441,1731321047988,-801.22,0.00014791,2]
[341953443,1731321047998,-500.0,0.00014791,2]
[341953445,1731321048007,-500.0,0.00014791,2]
[341953447,1731321048017,-500.0,0.00014791,2]
[341953449,1731321048026,-723.52,0.00014791,2]
[341953451,1731321048036,-548.64,0.00014791,2]
[341953453,1731321048046,-500.0,0.00014791,2]
[341953455,1731321048056,-557.35,0.00014791,2]
[341953457,1731321048066,-500.0,0.00014791,2]
[341953458,1731321048076,-500.0,0.00014792,2]
[341953461,1731321048087,-500.0,0.00014792,2]
[341953462,1731321048096,-342.65551352,0.00014792,2]
[341953464,1731321048106,-500.0,0.00014792,2]
[341953467,1731321048116,-500.0,0.00014792,2]
[341953468,1731321048126,-500.0,0.00014792,2]
[341953471,1731321048136,-500.0,0.00014792,2]
[341953473,1731321048146,-500.0,0.00014792,2]
[341953475,1731321048156,-500.0,0.00014792,2]
[341953477,1731321048166,-1535.08,0.00014792,2]
[341953478,1731321048176,-500.0,0.00014792,2]
[341953480,1731321048186,-659.21,0.00014792,2]
[341953482,1731321048196,-500.0,0.00014792,2]
[341953485,1731321048206,-500.0,0.00014792,2]
[341953487,1731321048218,-500.0,0.00014792,2]
[341953488,1731321048228,-886.77,0.00014792,2]
[341953490,1731321048238,-620.06988315,0.00014792,2]
[341953493,1731321048248,-1618.7,0.00014792,2]
[341953494,1731321048257,-500.0,0.00014792,2]
[341953496,1731321048267,-500.0,0.00014792,2]
[341953498,1731321048278,-500.0,0.00014792,2]
[341953500,1731321048287,-775.71,0.00014792,2]
[341953502,1731321048297,-370.96550816,0.00014792,2]
[341953504,1731321048309,-500.0,0.00014792,2]
[341953506,1731321048319,-574.78972242,0.00014792,2]
[341953508,1731321048329,-263.25,0.00014792,2]
[341953510,1731321048339,-500.0,0.00014792,2]
[341953512,1731321048349,-511.52582165,0.00014792,2]
[341953514,1731321048360,-500.0,0.00014792,2]
[341953516,1731321048369,-500.0,0.00014792,2]
[341953518,1731321048379,-500.0,0.00014792,2]
[341953520,1731321048388,-150.0,0.00014792,2]
[341953522,1731321048398,-500.0,0.00014792,2]
[341953524,1731321048407,-517.37,0.00014792,2]
[341953526,1731321048418,-500.0,0.00014792,2]
[341953528,1731321048427,-500.0,0.00014792,2]
[341953530,1731321048436,-500.0,0.00014792,2]
[341953532,1731321048446,-394.84,0.00014792,2]
[341953534,1731321048455,-500.0,0.00014792,2]
[341953536,1731321048464,-500.0,0.00014792,2]
[341953538,1731321048473,-500.0,0.00014792,2]
[341953540,1731321048482,-500.0,0.00014792,2]
[341953542,1731321048491,-500.0,0.00014792,2]
[341953544,1731321048500,-1357.42,0.00014792,2]
[341953546,1731321048509,-500.0,0.00014792,2]
[341953548,1731321048519,-545.80297128,0.00014792,2]
[341953550,1731321048528,-500.0,0.00014792,2]
[341953552,1731321048537,-500.0,0.00014792,2]
[341953554,1731321048546,-500.0,0.00014792,2]
[341953556,1731321048555,-500.0,0.00014792,2]
[341953558,1731321048566,-500.0,0.00014792,2]
[341953560,1731321048576,-500.0,0.00014792,2]
[341953562,1731321048585,-518.38309972,0.00014792,2]
[341953564,1731321048595,-500.0,0.00014792,2]
[341953566,1731321048605,-500.0,0.00014792,2]
[341953568,1731321048616,-500.0,0.00014792,2]
[341953570,1731321048625,-235.06497941,0.00014792,2]
[341953572,1731321048635,-500.0,0.00014792,2]
[341953574,1731321048647,-500.0,0.00014792,2]
[341953576,1731321048656,-500.0,0.00014792,2]
[341953578,1731321048666,-612.03,0.00014792,2]
[341953580,1731321048679,-500.0,0.00014792,2]
[341953582,1731321048692,-500.0,0.00014792,2]
[341953584,1731321048702,-500.0,0.00014792,2]
[341953586,1731321048712,-500.0,0.00014792,2]
[341953588,1731321048723,-257.2,0.00014792,2]
[341953590,1731321048732,-500.0,0.00014792,2]
[341953592,1731321048741,-500.0,0.00014792,2]
[341953594,1731321048751,-500.0,0.00014792,2]
[341953596,1731321048760,-500.0,0.00014792,2]
[341953598,1731321048769,-500.0,0.00014792,2]
[341953600,1731321048778,-1549.92,0.00014792,2]
[341953602,1731321048787,-1549.92,0.00014792,2]
[341953604,1731321048796,-500.0,0.00014792,2]
[341953606,1731321048805,-500.0,0.00014792,2]
[341953608,1731321048824,-500.0,0.00014792,2]
[341953610,1731321048833,-500.0,0.00014792,2]
[341953612,1731321048842,-202.89195329,0.00014792,2]
[341953614,1731321048851,-500.0,0.00014792,2]
[341953616,1731321048861,-500.0,0.00014792,2]
[341953618,1731321048870,-500.0,0.00014792,2]
[341953620,1731321048879,-1603.65,0.00014792,2]
[341953622,1731321048888,-1603.65,0.00014792,2]
[341953624,1731321048897,-500.0,0.00014792,2]
[341953626,1731321048907,-500.0,0.00014792,2]
[341953628,1731321048916,-500.0,0.00014792,2]
[341953630,1731321048926,-500.0,0.00014792,2]
[341953632,1731321048935,-640.12,0.00014792,2]
[341953634,1731321048944,-640.12,0.00014792,2]
[341953644,1731321049110,-688.99,0.00014792,2]
[341953645,1731321049120,-500.0,0.00014792,2]
[341953646,1731321049129,-500.0,0.00014792,2]
[341953647,1731321049138,-500.0,0.00014792,2]
[341953648,1731321049148,-500.0,0.00014792,2]
[341953650,1731321049157,-319.27,0.00014792,2]
[341953652,1731321049167,-500.0,0.00014792,2]
[341953654,1731321049176,-500.0,0.00014792,2]
[341953656,1731321049185,-500.0,0.00014792,2]
[341953658,1731321049194,-500.0,0.00014792,2]
[341953660,1731321049204,-500.0,0.00014792,2]
[341953662,1731321049213,-500.0,0.00014792,2]
[341953663,1731321049223,-500.0,0.00014792,2]
[341953665,1731321049232,-500.0,0.00014792,2]
[341953667,1731321049242,-1513.68,0.00014792,2]
[341953669,1731321049251,-500.0,0.00014792,2]
[341953671,1731321049261,-500.0,0.00014792,2]
[341953674,1731321049271,-600.22,0.00014792,2]
[341953676,1731321049280,-500.0,0.00014792,2]
[341953677,1731321049289,-500.0,0.00014792,2]
[341953679,1731321049299,-500.0,0.00014792,2]
[341953682,1731321049311,-500.0,0.00014792,2]
[341953684,1731321049321,-500.0,0.00014792,2]
[341953685,1731321049331,-1996.33,0.00014792,2]
[341953687,1731321049341,-500.0,0.00014792,2]
[341953689,1731321049351,-500.0,0.00014792,2]
[341953691,1731321049360,-500.0,0.00014792,2]
[341953693,1731321049370,-500.0,0.00014792,2]
[341953695,1731321049379,-760.61,0.00014792,2]
[341953696,1731321049388,-1589.0,0.00014792,2]
[341953697,1731321049397,-1456.1,0.00014792,2]
[341953698,1731321049406,-500.0,0.00014792,2]
[341953699,1731321049415,-500.0,0.00014792,2]
[341953700,1731321049425,-554.59,0.00014792,2]
[341953701,1731321049434,-500.0,0.00014792,2]
[341953702,1731321049443,-500.0,0.00014792,2]
[341953703,1731321049452,-151.899295,0.00014792,2]
[341953704,1731321049461,-500.0,0.00014792,2]
[341953705,1731321049471,-699.45,0.00014792,2]
[341953706,1731321049480,-724.2,0.00014792,2]
[341953707,1731321049489,-500.0,0.00014792,2]
[341953708,1731321049497,-503.1,0.00014792,2]
[341953709,1731321049506,-500.0,0.00014792,2]
[341953710,1731321049515,-500.0,0.00014792,2]
[341953711,1731321049525,-500.0,0.00014792,2]
[341953712,1731321049533,-500.0,0.00014792,2]
[341953713,1731321049542,-500.0,0.00014792,2]
[341953714,1731321049551,-500.0,0.00014792,2]
[341953715,1731321049561,-500.0,0.00014792,2]
[341953716,1731321049570,-500.0,0.00014792,2]
[341953717,1731321049580,-500.0,0.00014792,2]
[341953718,1731321049589,-809.93,0.00014792,2]
[341953719,1731321049599,-500.0,0.00014792,2]
[341953720,1731321049611,-500.0,0.00014792,2]
[341953721,1731321049619,-500.0,0.00014792,2]
[341953722,1731321049628,-501.92626633,0.00014792,2]
[341953723,1731321049638,-500.0,0.00014792,2]
[341953724,1731321049648,-505.61461472,0.00014792,2]
[341953725,1731321049658,-500.0,0.00014792,2]
[341953726,1731321049667,-2369.92,0.00014792,2]
[341953727,1731321049677,-1087.46,0.00014792,2]
[341953728,1731321049686,-500.0,0.00014792,2]
[341953729,1731321049696,-500.0,0.00014792,2]
[341953730,1731321049704,-500.0,0.00014792,2]
[341953731,1731321049713,-500.0,0.00014792,2]
[341953732,1731321049722,-500.0,0.00014792,2]
[341953733,1731321049732,-500.0,0.00014792,2]
[341953734,1731321049741,-1386.76,0.00014792,2]
[341953735,1731321049749,-500.0,0.00014792,2]
[341953736,1731321049759,-527.78,0.00014792,2]
[341953737,1731321049767,-500.0,0.00014792,2]
[341953738,1731321049777,-500.0,0.00014792,2]
[341953739,1731321049786,-500.0,0.00014792,2]
[341953740,1731321049795,-500.0,0.00014792,2]
[341953741,1731321049804,-500.0,0.00014792,2]
[341953742,1731321049815,-500.0,0.00014792,2]
[341953743,1731321049824,-500.0,0.00014792,2]
[341953744,1731321049833,-500.0,0.00014792,2]
[341953745,1731321049843,-503.16430244,0.00014792,2]
[341953746,1731321049851,-500.0,0.00014792,2]
[341953747,1731321049860,-500.0,0.00014792,2]
[341953748,1731321049869,-500.0,0.00014792,2]
[341953749,1731321049877,-2974.98,0.00014792,2]
[341953750,1731321049887,-500.0,0.00014792,2]
[341953751,1731321049895,-500.0,0.00014792,2]
[341953752,1731321049907,-500.0,0.00014792,2]
[341953753,1731321049916,-500.0,0.00014792,2]
[341953754,1731321049925,-500.0,0.00014792,2]
[341953755,1731321049934,-515.04868045,0.00014792,2]
[341953756,1731321050195,-348.74616477,0.00014785,2]
[341953757,1731321050212,-151.25383523,0.00014785,2]
[341953758,1731321050221,-50.19131955,0.00014792,2]
[341953759,1731321050230,-500.0,0.00014792,2]
[341953760,1731321050239,-755.97,0.00014792,2]
[341953761,1731321050248,-617.75,0.00014792,2]
[341953762,1731321050257,-500.0,0.00014792,2]
[341953763,1731321050266,-354.19064617,0.00014792,2]
[341953764,1731321050370,-145.80935383,0.00014792,2]
[341953765,1731321050379,-518.0499078,0.00014792,2]
[341953766,1731321050388,-759.27,0.00014792,2]
[341953767,1731321050397,-1112.22,0.00014792,2]
[341953768,1731321050406,-500.0,0.00014792,2]
[341953769,1731321050415,-500.0,0.00014792,2]
[341953770,1731321050424,-500.0,0.00014792,2]
[341953771,1731321050433,-280.90756273,0.00014792,2]
[341953772,1731321050442,-500.0,0.00014792,2]
[341953773,1731321050451,-500.0,0.00014792,2]
[341953774,1731321050460,-500.0,0.00014792,2]
[341953775,1731321050469,-500.0,0.00014792,2]
[341953776,1731321050478,-500.0,0.00014792,2]
[341953777,1731321050488,-500.0,0.00014792,2]
[341953778,1731321050497,-500.0,0.00014792,2]
[341953779,1731321050506,-535.69,0.00014792,2]
[341953780,1731321050515,-500.0,0.00014792,2]
[341953781,1731321050524,-1080.33,0.00014792,2]
[341953782,1731321050534,-500.0,0.00014792,2]
[341953783,1731321050543,-472.07,0.00014792,2]
[341953784,1731321050553,-536.78,0.00014792,2]
[341953785,1731321050562,-500.0,0.00014792,2]
[341953786,1731321050571,-500.0,0.00014792,2]
[341953787,1731321050580,-500.0,0.00014792,2]
[341953788,1731321050589,-500.0,0.00014792,2]
[341953789,1731321050598,-137.53156946,0.00014792,2]
[341953790,1731321050612,-362.46843054,0.00014792,2]
[341953791,1731321050623,-500.0,0.00014792,2]
[341953792,1731321050633,-500.0,0.00014792,2]
[341953793,1731321050641,-500.0,0.00014792,2]
[341953794,1731321050650,-528.92,0.00014792,2]
[341953795,1731321050661,-500.0,0.00014792,2]
[341953796,1731321050670,-500.0,0.00014792,2]
[341953797,1731321050679,-500.0,0.00014792,2]
[341953798,1731321050689,-801.22,0.00014792,2]
[341953799,1731321050698,-500.0,0.00014792,2]
[341953800,1731321050707,-500.0,0.00014792,2]
[341953801,1731321050716,-500.0,0.00014792,2]
[341953802,1731321050725,-908.27,0.00014792,2]
[341953803,1731321050734,-500.0,0.00014792,2]
[341953804,1731321050743,-500.0,0.00014792,2]
[341953805,1731321050752,-500.0,0.00014792,2]
[341953806,1731321050761,-500.0,0.00014792,2]
[341953807,1731321050770,-500.0,0.00014792,2]
[341953808,1731321050779,-500.0,0.00014792,2]
[341953809,1731321050788,-500.0,0.00014792,2]
[341953810,1731321050797,-500.0,0.00014792,2]
[341953811,1731321050806,-500.0,0.00014792,2]
[341953812,1731321050816,-500.0,0.00014792,2]
[341953813,1731321050825,-341.53842508,0.00014792,2]
[341953814,1731321050834,-723.52,0.00014792,2]
[341953815,1731321050843,-548.64,0.00014792,2]
[341953816,1731321050852,-500.0,0.00014792,2]
[341953817,1731321050861,-500.0,0.00014792,2]
[341953818,1731321050870,-557.35,0.00014792,2]
[341953819,1731321050879,-617.16,0.00014792,2]
[341953820,1731321050888,-500.0,0.00014792,2]
[341953821,1731321050897,-2695.17,0.00014792,2]
[341953822,1731321050905,-500.0,0.00014792,2]
[341953823,1731321050915,-500.0,0.00014793,2]
[341953824,1731321050924,-500.0,0.00014793,2]
[341953825,1731321050932,-500.0,0.00014793,2]
[341953826,1731321050941,-359.60827483,0.00014793,2]
[341953827,1731321050950,-500.0,0.00014793,2]
[341953828,1731321050959,-500.0,0.00014793,2]
[341953829,1731321050967,-500.0,0.00014793,2]
[341953830,1731321050976,-500.0,0.00014793,2]
[341953831,1731321050985,-500.0,0.00014793,2]
[341953832,1731321050995,-500.0,0.00014793,2]
[341953833,1731321051004,-500.0,0.00014793,2]
[341953834,1731321051013,-500.0,0.00014793,2]
[341953835,1731321051022,-500.0,0.00014793,2]
[341953836,1731321051031,-539.19098779,0.00014793,2]
[341953837,1731321051041,-500.0,0.00014793,2]
[341953838,1731321051050,-500.0,0.00014793,2]
[341953839,1731321051059,-338.53798658,0.00014793,2]
[341953840,1731321051071,-500.0,0.00014793,2]
[341953841,1731321051080,-500.0,0.00014793,2]
[341953842,1731321051089,-500.0,0.00014793,2]
[341953843,1731321051099,-500.0,0.00014793,2]
[341953844,1731321051108,-500.0,0.00014793,2]
[341953845,1731321051117,-500.0,0.00014793,2]
[341953846,1731321051127,-1535.08,0.00014793,2]
[341953847,1731321051136,-1535.08,0.00014793,2]
[341953848,1731321051147,-1535.08,0.00014793,2]
[341953849,1731321051156,-1535.08,0.00014793,2]
[341953850,1731321051165,-659.21,0.00014793,2]
[341953851,1731321051174,-659.21,0.00014793,2]
[341953852,1731321051184,-659.21,0.00014793,2]
[341953853,1731321051193,-659.21,0.00014793,2]
[341953854,1731321051205,-500.0,0.00014793,2]
[341953855,1731321051215,-500.0,0.00014793,2]
[341953856,1731321051229,-500.0,0.00014793,2]
[341953857,1731321051239,-500.0,0.00014793,2]
[341953858,1731321051248,-281.9463613,0.00014793,2]
[341953859,1731321051261,-500.0,0.00014793,2]
[341953860,1731321051274,-500.0,0.00014793,2]
[341953861,1731321051283,-156.767815,0.00014793,2]
[341953862,1731321051293,-886.77,0.00014793,2]
[341953863,1731321051302,-886.77,0.00014793,2]
[341953864,1731321051315,-886.77,0.00014793,2]
[341953865,1731321051325,-886.77,0.00014793,2]
[341953866,1731321051479,-1618.7,0.00014793,2]
[341953867,1731321051489,-1618.7,0.00014793,2]
[341953868,1731321051499,-1618.7,0.00014793,2]
[341953869,1731321051508,-1618.7,0.00014793,2]
[341953870,1731321051517,-500.0,0.00014793,2]
[341953871,1731321051526,-775.71,0.00014793,2]
[341953872,1731321051535,-775.71,0.00014793,2]
[341953873,1731321051544,-775.71,0.00014793,2]
[341953874,1731321051553,-775.71,0.00014793,2]
[341953875,1731321051565,-513.77512337,0.00014793,2]
[341953876,1731321051574,-500.0,0.00014793,2]
[341953877,1731321051583,-500.0,0.00014793,2]
[341953878,1731321051592,-500.0,0.00014793,2]
[341953879,1731321051601,-500.0,0.00014793,2]
[341953880,1731321051615,-500.0,0.00014793,2]
[341953881,1731321051623,-500.0,0.00014793,2]
[341953882,1731321051632,-500.0,0.00014793,2]
[341953883,1731321051641,-500.0,0.00014793,2]
[341953884,1731321051651,-500.0,0.00014793,2]
[341953885,1731321051660,-152.12991756,0.00014793,2]
[341953886,1731321051669,-150.0,0.00014793,2]
[341953887,1731321051678,-150.0,0.00014793,2]
[341953888,1731321051689,-154.92825478,0.00014793,2]
[341953889,1731321051698,-500.0,0.00014793,2]
[341953890,1731321051707,-500.0,0.00014793,2]
[341953891,1731321051716,-500.0,0.00014793,2]
[341953892,1731321051724,-500.0,0.00014793,2]
[341953893,1731321051733,-630.26812216,0.00014793,2]
[341953894,1731321051742,-500.0,0.00014793,2]
[341953895,1731321051751,-500.0,0.00014793,2]
[341953896,1731321051760,-500.0,0.00014793,2]
[341953897,1731321051770,-364.95322976,0.00014793,2]
[341953898,1731321051780,-500.0,0.00014793,2]
[341953899,1731321051789,-500.0,0.00014793,2]
[341953900,1731321051798,-519.90478637,0.00014793,2]
[341953901,1731321051807,-500.0,0.00014793,2]
[341953902,1731321051819,-500.0,0.00014793,2]
[341953903,1731321051828,-500.0,0.00014793,2]
[341953904,1731321051836,-500.0,0.00014793,2]
[341953905,1731321051845,-1357.42,0.00014793,2]
[341953906,1731321051854,-1357.42,0.00014793,2]
[341953907,1731321051864,-1357.42,0.00014793,2]
[341953908,1731321051874,-1357.42,0.00014793,2]
[341953909,1731321051882,-500.0,0.00014793,2]
[341953910,1731321051891,-622.72695579,0.00014793,2]
[341953911,1731321051900,-500.0,0.00014793,2]
[341953912,1731321051909,-245.60523743,0.00014793,2]
[341953913,1731321051918,-500.0,0.00014793,2]
[341953914,1731321051927,-500.0,0.00014793,2]
[341953915,1731321051936,-500.0,0.00014793,2]
[341953916,1731321051944,-500.0,0.00014793,2]
[341953917,1731321051954,-500.0,0.00014793,2]
[341953918,1731321051963,-500.0,0.00014793,2]
[341953919,1731321051972,-500.0,0.00014793,2]
[341953920,1731321051981,-500.0,0.00014793,2]
[341953921,1731321051990,-500.0,0.00014793,2]
[341953922,1731321052000,-55.32311177,0.00014793,2]
[341953923,1731321052011,-444.67688823,0.00014793,2]
[341953924,1731321052020,-500.0,0.00014793,2]
[341953925,1731321052029,-500.0,0.00014793,2]
[341953926,1731321052038,-151.0,0.00014793,2]
[341953927,1731321052047,-151.0,0.00014793,2]
[341953928,1731321052056,-500.0,0.00014793,2]
[341953929,1731321052069,-151.0,0.00014793,2]
[341953930,1731321052078,-151.0,0.00014793,2]
[341953931,1731321052087,-151.0,0.00014793,2]
[341953932,1731321052097,-151.0,0.00014793,2]
[341953933,1731321052106,-152.649394,0.00014793,2]
[341953934,1731321052115,-500.0,0.00014793,2]
[341953935,1731321052124,-528.63,0.00014793,2]
[341953936,1731321052133,-500.0,0.00014793,2]
[341953937,1731321052142,-1549.92,0.00014793,2]
[341953938,1731321052151,-151.0,0.00014793,2]
[341953939,1731321052159,-500.0,0.00014793,2]
[341953940,1731321052167,-500.0,0.00014793,2]
[341953941,1731321052176,-303.30304754,0.00014793,2]
[341953944,1731321199175,2000.0,0.00024992,120]
[341953945,1731321219261,215.69,0.00011874,2]
[341953946,1731321314370,7130.66,0.00014385,7]
[341953951,1731321723041,639.5235147,0.0002399,120]
[341953969,1731322119454,240.82,0.00011006,2]
[341953984,1731322232267,-154.46,0.00012906,2]
[341953986,1731322232277,-250.0,0.00012921,2]
[341953988,1731322232286,-57.26,0.00012921,2]
[341953990,1731322232472,-192.74,0.00012921,2]
[341953991,1731322232482,-332.0293386,0.00012952,2]
[341953992,1731322232633,-667.9706614,0.00012952,2]
[341953993,1731322232643,-203.93,0.00013013,2]
[341953994,1731322232652,-164.89,0.00013101,2]
[341953995,1731322232661,-68.7093386,0.00013243,2]
[341954000,1731322232708,-897.2506614,0.00013243,2]
[341954002,1731322232717,-240.82,0.0001327,2]
[341954004,1731322232726,-453.8,0.00013281,2]
[341954006,1731322232735,-300.0,0.00013699,2]
[341954007,1731322232744,-150.99,0.00013716,2]
[341954008,1731322232754,-166.627,0.0001372,2]
[341954010,1731322232763,-524.237,0.0001372,2]
[341954011,1731322232772,-9112.0,0.0001372,2]
[341954012,1731322232781,-1580.92099485,0.00013898,2]
[341954013,1731322232791,-151.94672545,0.00013898,2]
[341954014,1731322232800,-1000.0,0.00013898,2]
[341954015,1731322232811,-2072.2768,0.00013898,2]
[341954016,1731322232820,-1580.92099482,0.00013898,2]
[341954017,1731322232831,-1580.92099482,0.00013898,2]
[341954018,1731322232840,-1580.92099482,0.00013899,2]
[341954019,1731322232849,-1580.92099482,0.00013899,2]
[341954020,1731322232858,-151.94672544,0.00013899,2]
[341954021,1731322232869,-1580.92099482,0.00013899,2]
[341954022,1731322232879,-1580.92099482,0.00013899,2]
[341954023,1731322232888,-1580.92099482,0.000139,2]
[341954024,1731322232897,-1580.92099482,0.000139,2]
[341954025,1731322232907,-498.18846037,0.000139,2]
[341954026,1731322232916,-1580.92099482,0.000139,2]
[341954027,1731322232926,-630.3832337,0.000139,2]
[341954028,1731322232935,-205.33035703,0.00013973,2]